fUSD/lending_fUSD_20240714
["ID","MTS","AMOUNT","RATE_DAILY","PERIOD"]
[332154055,1720992640708,-500.0,0.00013863,2]
[332154056,1720992640717,-500.0,0.00013863,2]
[332154058,1720992640726,-500.0,0.00013863,2]
[332154060,1720992640735,-500.0,0.00013863,2]
[332154062,1720992640744,-500.0,0.00013863,2]
[332154064,1720992640753,-387.58209274,0.00013863,2]
[332154066,1720992640763,-500.0,0.00013863,2]
[332154068,1720992640775,-1256.74,0.00013863,2]
[332154070,1720992640785,-500.0,0.00013863,2]
[332154072,1720992640795,-500.0,0.00013863,2]
[332154074,1720992640806,-500.0,0.00013863,2]
[332154076,1720992640815,-500.0,0.00013863,2]
[332154078,1720992640826,-500.0,0.00013863,2]
[332154080,1720992640836,-500.0,0.00013863,2]
[332154081,1720992640846,-500.0,0.00013863,2]
[332154083,1720992640856,-649.59,0.00013863,2]
[332154085,1720992640865,-500.0,0.00013863,2]
[332154087,1720992640876,-500.0,0.00013863,2]
[332154089,1720992640886,-500.0,0.00013863,2]
[332154091,1720992640895,-500.0,0.00013863,2]
[332154093,1720992640906,-500.0,0.00013863,2]
[332154095,1720992640916,-500.0,0.00013863,2]
[332154097,1720992640926,-1402.59,0.00013863,2]
[332154099,1720992640937,-500.0,0.00013863,2]
[332154101,1720992640947,-500.0,0.00013863,2]
[332154103,1720992640959,-500.0,0.00013863,2]
[332154105,1720992640970,-263.75418329,0.00013889,2]
[332154107,1720992640981,-118648.782944,0.0001389,3]
[332154109,1720992640990,-418.9,0.0001389,2]
[332154111,1720992641000,-418.9,0.0001389,2]
[332154113,1720992641010,-418.9,0.0001389,2]
[332154115,1720992641019,-500.0,0.00013899,2]
[332154117,1720992641028,-500.0,0.00013899,2]
[332154119,1720992641038,-552.84511119,0.00013899,2]
[332154120,1720992641047,-155.0,0.00013899,2]
[332154122,1720992641059,-364.80951255,0.00013899,2]
[332154124,1720992641068,-572.0,0.000139,2]
[332154126,1720992641079,-1000.0,0.000139,2]
[332154127,1720992641088,-21022.1544,0.000139,2]
[332154128,1720992641098,-4054.072,0.000139,2]
[332154129,1720992641107,-65952.5193683,0.000139,2]
[332154130,1720992641120,-495.16801371,0.000139,2]
[332154131,1720992641132,-548.34318324,0.000139,2]
[332154132,1720992641143,-11604.01258862,0.000139,2]
[332154133,1720992641154,-11535.03042898,0.000139,2]
[332154153,1720992641383,-155.0,0.000119,2]
[332154155,1720992641393,-647.9755,0.00013386,2]
[332154157,1720992641402,-500.0,0.00013849,2]
[332154159,1720992641412,-500.0,0.00013849,2]
[332154161,1720992641421,-185.48541552,0.000139,2]
[332154163,1720992641433,-119445.01374659,0.000139,2]
[332154165,1720992641443,-11602.70910208,0.000139,2]
[332154167,1720992641454,-1411.40940451,0.000139,2]
[332154170,1720992641465,-1469.28364703,0.000139,2]
[332154172,1720992641476,-774.06996451,0.000139,2]
[332154174,1720992641487,-837.78992571,0.000139,2]
[332154176,1720992641497,-457.8345374,0.000139,2]
[332154199,1720992641702,-500.6964493,0.000139,2]
[332154202,1720992641715,-384.352,0.000139,2]
[332154204,1720992641727,-325.82,0.000139,2]
[332154207,1720992641743,-11709.60775064,0.000139,2]
[332154209,1720992641754,-443.13092382,0.000139,2]
[332154213,1720992641781,-5317.72355004,0.000139,2]
[332154215,1720992641790,-800.0,0.000139,5]
[332154217,1720992641801,-24843.44862741,0.000139,3]
[332154220,1720992641822,-500.0,0.00013849,2]
[332154222,1720992641831,-1892.31790448,0.000139,3]
[332154224,1720992641842,-427.20419193,0.000139,3]
[332154226,1720992641853,-361.50251061,0.000139,3]
[332154229,1720992641867,-738.11002,0.000139,3]
[332154231,1720992641880,-312.6138,0.000139,3]
[332154234,1720992641896,-376.955934,0.000139,3]
[332154236,1720992641907,-46039.52669507,0.000139,3]
[332154238,1720992641916,-500.0,0.00013903,2]
[332154240,1720992641926,-500.0,0.00013903,2]
[332154242,1720992641935,-500.0,0.00013903,2]
[332154244,1720992641943,-500.0,0.00013903,2]
[332154245,1720992641953,-510.21810355,0.00013903,2]
[332154247,1720992641962,-500.0,0.00013903,2]
[332154249,1720992641972,-500.0,0.00013903,2]
[332154251,1720992641981,-500.0,0.00013903,2]
[332154253,1720992641991,-500.0,0.00013903,2]
[332154255,1720992642000,-500.0,0.00013903,2]
[332154257,1720992642009,-500.0,0.00013903,2]
[332154259,1720992642019,-500.0,0.00013903,2]
[332154261,1720992642028,-500.0,0.00013903,2]
[332154263,1720992642037,-500.0,0.00013903,2]
[332154265,1720992642047,-500.0,0.00013903,2]
[332154267,1720992642057,-500.0,0.00013903,2]
[332154268,1720992642067,-500.0,0.00013903,2]
[332154269,1720992642076,-500.0,0.00013903,2]
[332154270,1720992642085,-500.0,0.00013903,2]
[332154271,1720992642094,-500.0,0.00013903,2]
[332154272,1720992642103,-500.0,0.00013903,2]
[332154273,1720992642112,-500.0,0.00013903,2]
[332154274,1720992642121,-500.0,0.00013903,2]
[332154275,1720992642131,-1070.5,0.00013903,2]
[332154276,1720992642140,-500.0,0.00013903,2]
[332154277,1720992642149,-500.0,0.00013903,2]
[332154278,1720992642158,-500.0,0.00013903,2]
[332154279,1720992642167,-500.0,0.00013903,2]
[332154280,1720992642176,-500.0,0.00013903,2]
[332154281,1720992642185,-500.0,0.00013903,2]
[332154283,1720992642199,-500.0,0.00013903,2]
[332154285,1720992642208,-500.0,0.00013903,2]
[332154286,1720992642218,-500.0,0.00013903,2]
[332154288,1720992642227,-500.0,0.00013903,2]
[332154290,1720992642236,-2272.84,0.00013903,2]
[332154293,1720992642247,-500.0,0.00013903,2]
[332154294,1720992642256,-500.0,0.00013903,2]
[332154296,1720992642266,-500.0,0.00013903,2]
[332154298,1720992642278,-500.0,0.00013903,2]
[332154300,1720992642288,-500.0,0.00013903,2]
[332154302,1720992642297,-221.43314355,0.00013903,2]
[332154305,1720992642310,-500.0,0.00013903,2]
[332154306,1720992642319,-500.0,0.00013903,2]
[332154308,1720992642328,-634.11532337,0.00013903,2]
[332154310,1720992642337,-500.0,0.00013903,2]
[332154312,1720992642346,-500.0,0.00013903,2]
[332154314,1720992642355,-500.0,0.00013903,2]
[332154316,1720992642364,-508.76,0.00013903,2]
[332154318,1720992642374,-500.0,0.00013903,2]
[332154320,1720992642384,-500.0,0.00013903,2]
[332154322,1720992642393,-500.0,0.00013903,2]
[332154324,1720992642403,-527.99,0.00013903,2]
[332154326,1720992642412,-635.32,0.00013903,2]
[332154328,1720992642422,-500.0,0.00013903,2]
[332154330,1720992642431,-500.0,0.00013903,2]
[332154332,1720992642441,-500.0,0.00013903,2]
[332154334,1720992642450,-500.0,0.00013903,2]
[332154336,1720992642459,-500.0,0.00013903,2]
[332154338,1720992642468,-500.0,0.00013904,2]
[332154340,1720992642478,-500.0,0.00013904,2]
[332154342,1720992642488,-500.0,0.00013904,2]
[332154344,1720992642497,-500.0,0.00013904,2]
[332154346,1720992642506,-500.0,0.00013904,2]
[332154348,1720992642515,-500.0,0.00013904,2]
[332154350,1720992642524,-500.0,0.00013904,2]
[332154352,1720992642533,-500.0,0.00013904,2]
[332154354,1720992642542,-500.0,0.00013904,2]
[332154356,1720992642552,-500.0,0.00013904,2]
[332154358,1720992642562,-500.0,0.00013904,2]
[332154360,1720992642571,-587.44558604,0.00013904,2]
[332154362,1720992642579,-500.0,0.00013904,2]
[332154364,1720992642589,-500.0,0.00013904,2]
[332154366,1720992642598,-500.0,0.00013904,2]
[332154368,1720992642607,-500.0,0.00013904,2]
[332154370,1720992642618,-500.0,0.00013904,2]
[332154372,1720992642627,-500.0,0.00013904,2]
[332154374,1720992642637,-500.0,0.00013904,2]
[332154376,1720992642646,-500.0,0.00013904,2]
[332154378,1720992642655,-500.0,0.00013904,2]
[332154380,1720992642664,-151.43,0.00013904,2]
[332154382,1720992642673,-500.0,0.00013904,2]
[332154384,1720992642682,-500.0,0.00013904,2]
[332154386,1720992642692,-500.0,0.00013904,2]
[332154388,1720992642701,-500.0,0.00013904,2]
[332154390,1720992642710,-500.0,0.00013904,2]
[332154392,1720992642719,-500.0,0.00013904,2]
[332154394,1720992642729,-310.18,0.00013904,2]
[332154396,1720992642738,-500.0,0.00013904,2]
[332154398,1720992642747,-500.0,0.00013904,2]
[332154400,1720992642756,-500.0,0.00013904,2]
[332154402,1720992642766,-500.0,0.00013904,2]
[332154404,1720992642775,-500.0,0.00013904,2]
[332154406,1720992642784,-500.0,0.00013904,2]
[332154408,1720992642794,-500.0,0.00013904,2]
[332154410,1720992642803,-500.0,0.00013904,2]
[332154412,1720992642812,-500.0,0.00013904,2]
[332154414,1720992642821,-500.0,0.00013904,2]
[332154416,1720992642830,-500.0,0.00013904,2]
[332154418,1720992642840,-500.0,0.00013904,2]
[332154420,1720992642849,-500.0,0.00013904,2]
[332154422,1720992642859,-429.47418157,0.00013904,2]
[332154424,1720992642868,-500.0,0.00013904,2]
[332154426,1720992642877,-500.0,0.00013904,2]
[332154428,1720992642886,-500.0,0.00013904,2]
[332154429,1720992642895,-500.0,0.00013904,2]
[332154431,1720992642905,-500.0,0.00013904,2]
[332154433,1720992642914,-500.0,0.00013904,2]
[332154435,1720992642923,-500.0,0.00013904,2]
[332154437,1720992642933,-282.97,0.00013904,2]
[332154439,1720992642942,-525.20222204,0.00013904,2]
[332154441,1720992642951,-413.23,0.00013904,2]
[332154443,1720992642961,-256.99,0.00013904,2]
[332154445,1720992642970,-500.0,0.00013904,2]
[332154447,1720992642979,-364.36127141,0.00013904,2]
[332154449,1720992642989,-262.42,0.00013904,2]
[332154451,1720992642998,-500.0,0.00013904,2]
[332154453,1720992643008,-500.0,0.00013904,2]
[332154455,1720992643017,-500.0,0.00013904,2]
[332154457,1720992643027,-500.0,0.00013904,2]
[332154459,1720992643035,-500.0,0.00013904,2]
[332154461,1720992643045,-500.0,0.00013904,2]
[332154464,1720992643057,-500.0,0.00013904,2]
[332154467,1720992643067,-500.0,0.00013904,2]
[332154470,1720992643077,-439.91072724,0.00013904,2]
[332154472,1720992643087,-500.0,0.00013904,2]
[332154475,1720992643098,-500.0,0.00013904,2]
[332154478,1720992643107,-500.0,0.00013904,2]
[332154484,1720992643118,-500.0,0.00013904,2]
[332154487,1720992643127,-500.0,0.00013904,2]
[332154490,1720992643137,-500.0,0.00013904,2]
[332154494,1720992643147,-464.4,0.00013904,2]
[332154496,1720992643158,-500.0,0.00013904,2]
[332154499,1720992643168,-500.0,0.00013904,2]
[332154502,1720992643177,-500.0,0.00013904,2]
[332154505,1720992643190,-500.0,0.00013904,2]
[332154508,1720992643200,-500.0,0.00013904,2]
[332154511,1720992643210,-500.0,0.00013904,2]
[332154514,1720992643220,-269.84582206,0.00013904,2]
[332154517,1720992643229,-500.0,0.00013904,2]
[332154520,1720992643239,-500.0,0.00013904,2]
[332154523,1720992643249,-500.0,0.00013904,2]
[332154528,1720992643258,-500.0,0.00013917,2]
[332154534,1720992643268,-500.0,0.00013917,2]
[332154538,1720992643277,-500.0,0.00013917,2]
[332154541,1720992643287,-500.0,0.00013917,2]
[332154544,1720992643297,-479.01230704,0.00013917,2]
[332154547,1720992643307,-150.0,0.00013917,2]
[332154550,1720992643317,-500.0,0.00013917,2]
[332154552,1720992643326,-500.0,0.00013917,2]
[332154554,1720992643336,-500.0,0.00013917,2]
[332154556,1720992643346,-500.0,0.00013917,2]
[332154559,1720992643356,-500.0,0.00013917,2]
[332154562,1720992643365,-500.0,0.00013917,2]
[332154564,1720992643375,-500.0,0.00013917,2]
[332154566,1720992643385,-500.0,0.00013917,2]
[332154568,1720992643394,-500.0,0.00013917,2]
[332154570,1720992643404,-500.0,0.00013917,2]
[332154572,1720992643413,-500.0,0.00013917,2]
[332154574,1720992643423,-500.0,0.00013917,2]
[332154575,1720992643433,-589.91,0.00013917,2]
[332154577,1720992643442,-500.0,0.00013917,2]
[332154579,1720992643451,-500.0,0.00013917,2]
[332154584,1720992643460,-500.0,0.00013917,2]
[332154587,1720992643470,-500.0,0.00013917,2]
[332154593,1720992643479,-500.0,0.00013917,2]
[332154597,1720992643488,-500.0,0.00013917,2]
[332154601,1720992643498,-500.0,0.00013917,2]
[332154604,1720992643507,-500.0,0.00013917,2]
[332154606,1720992643517,-500.0,0.00013917,2]
[332154609,1720992643526,-606.68,0.00013917,2]
[332154613,1720992643536,-921.18,0.00013917,2]
[332154615,1720992643545,-500.0,0.00013917,2]
[332154618,1720992643554,-617.08,0.00013917,2]
[332154622,1720992643564,-198.56475418,0.00013917,2]
[332154625,1720992643573,-500.0,0.00013917,2]
[332154628,1720992643583,-500.0,0.00013917,2]
[332154631,1720992643593,-500.0,0.00013917,2]
[332154633,1720992643602,-935.03,0.00013917,2]
[332154635,1720992643613,-500.0,0.00013917,2]
[332154637,1720992643622,-500.0,0.00013917,2]
[332154639,1720992643632,-662.74478022,0.00013917,2]
[332154663,1720992643842,-439.63521978,0.00013917,2]
[332154665,1720992643853,-500.0,0.00013917,2]
[332154667,1720992643863,-211.06542987,0.00013917,2]
[332154669,1720992643874,-288.93457013,0.00013917,2]
[332154671,1720992643884,-500.0,0.00013917,2]
[332154673,1720992643893,-500.0,0.00013917,2]
[332154675,1720992643903,-500.0,0.00013917,2]
[332154677,1720992643913,-500.0,0.00013917,2]
[332154679,1720992643923,-1256.74,0.00013917,2]
[332154681,1720992643933,-500.0,0.00013917,2]
[332154683,1720992643944,-500.0,0.00013917,2]
[332154685,1720992643954,-500.0,0.00013917,2]
[332154687,1720992643964,-500.0,0.00013917,2]
[332154689,1720992643974,-500.0,0.00013917,2]
[332154691,1720992643984,-500.0,0.00013917,2]
[332154693,1720992643994,-500.0,0.00013917,2]
[332154695,1720992644004,-500.0,0.00013917,2]
[332154697,1720992644014,-500.0,0.00013917,2]
[332154700,1720992644024,-500.0,0.00013917,2]
[332154702,1720992644034,-1402.59,0.00013917,2]
[332154704,1720992644044,-645.71287863,0.00013917,2]
[332154706,1720992644055,-500.0,0.00013917,2]
[332154708,1720992644064,-500.0,0.00013954,2]
[332154710,1720992644075,-1659.0,0.00013955,2]
[332154712,1720992644085,-500.0,0.00013958,2]
[332154714,1720992644095,-500.0,0.00013958,2]
[332154716,1720992644104,-500.0,0.00013958,2]
[332154719,1720992644114,-500.0,0.00013958,2]
[332154722,1720992644124,-500.0,0.00013958,2]
[332154725,1720992644135,-500.0,0.00013958,2]
[332154728,1720992644145,-500.0,0.00013958,2]
[332154731,1720992644154,-500.0,0.00013958,2]
[332154734,1720992644164,-500.0,0.00013958,2]
[332154736,1720992644174,-500.0,0.00013958,2]
[332154738,1720992644184,-500.0,0.00013958,2]
[332154740,1720992644196,-500.0,0.00013958,2]
[332154742,1720992644205,-500.0,0.00013958,2]
[332154745,1720992644215,-500.0,0.00013958,2]
[332154747,1720992644225,-500.0,0.00013958,2]
[332154749,1720992644234,-500.0,0.00013958,2]
[332154751,1720992644244,-500.0,0.00013958,2]
[332154753,1720992644254,-500.0,0.00013958,2]
[332154755,1720992644264,-500.0,0.00013958,2]
[332154757,1720992644274,-500.0,0.00013958,2]
[332154759,1720992644284,-500.0,0.00013958,2]
[332154761,1720992644294,-500.0,0.00013958,2]
[332154763,1720992644305,-1070.5,0.00013958,2]
[332154765,1720992644318,-500.0,0.00013958,2]
[332154767,1720992644328,-500.0,0.00013958,2]
[332154769,1720992644338,-500.0,0.00013958,2]
[332154771,1720992644348,-500.0,0.00013958,2]
[332154773,1720992644358,-500.0,0.00013958,2]
[332154775,1720992644367,-500.0,0.00013958,2]
[332154777,1720992644377,-500.0,0.00013958,2]
[332154779,1720992644387,-500.0,0.00013958,2]
[332154781,1720992644396,-500.0,0.00013958,2]
[332154783,1720992644406,-500.0,0.00013958,2]
[332154785,1720992644416,-2272.84,0.00013958,2]
[332154787,1720992644425,-500.0,0.00013958,2]
[332154789,1720992644435,-500.0,0.00013958,2]
[332154791,1720992644445,-500.0,0.00013958,2]
[332154793,1720992644455,-500.0,0.00013958,2]
[332154795,1720992644464,-500.0,0.00013958,2]
[332154797,1720992644475,-500.0,0.00013958,2]
[332154799,1720992644485,-500.0,0.00013958,2]
[332154801,1720992644495,-500.0,0.00013958,2]
[332154803,1720992644505,-500.0,0.00013958,2]
[332154805,1720992644515,-219.56128281,0.00013958,2]
[332154807,1720992644526,-500.0,0.00013958,2]
[332154810,1720992644537,-500.0,0.00013958,2]
[332154812,1720992644549,-336.42,0.00013958,2]
[332154813,1720992644562,-527.99,0.00013958,2]
[332154814,1720992644571,-500.0,0.00013958,2]
[332154815,1720992644581,-500.0,0.00013958,2]
[332154816,1720992644591,-500.0,0.00013958,2]
[332154817,1720992644603,-500.0,0.00013958,2]
[332154818,1720992644613,-500.0,0.00013958,2]
[332154819,1720992644623,-500.0,0.00013959,2]
[332154833,1720992644795,-500.0,0.00013959,2]
[332154835,1720992644807,-500.0,0.00013959,2]
[332154837,1720992644816,-500.0,0.00013959,2]
[332154839,1720992644825,-500.0,0.00013959,2]
[332154840,1720992644835,-372.50188144,0.00013959,2]
[332154842,1720992644844,-500.0,0.00013959,2]
[332154845,1720992644853,-500.0,0.00013959,2]
[332154847,1720992644863,-500.0,0.00013959,2]
[332154849,1720992644874,-500.0,0.00013959,2]
[332154851,1720992644883,-500.0,0.00013959,2]
[332154853,1720992644893,-500.0,0.00013959,2]
[332154855,1720992644902,-418.62424854,0.00013959,2]
[332154857,1720992644913,-500.0,0.00013959,2]
[332154859,1720992644924,-500.0,0.00013959,2]
[332154861,1720992644934,-500.0,0.00013959,2]
[332154863,1720992644944,-500.0,0.00013959,2]
[332154865,1720992644955,-500.0,0.00013959,2]
[332154868,1720992644966,-500.0,0.00013959,2]
[332154870,1720992644977,-500.0,0.00013959,2]
[332154872,1720992644987,-500.0,0.00013959,2]
[332154874,1720992644996,-500.0,0.00013959,2]
[332154876,1720992645006,-500.0,0.00013959,2]
[332154878,1720992645015,-500.0,0.00013959,2]
[332154880,1720992645026,-500.0,0.00013959,2]
[332154882,1720992645035,-500.0,0.00013959,2]
[332154884,1720992645046,-500.0,0.00013959,2]
[332154886,1720992645056,-500.0,0.00013959,2]
[332154888,1720992645065,-500.0,0.00013959,2]
[332154890,1720992645074,-500.0,0.00013959,2]
[332154892,1720992645086,-500.0,0.00013959,2]
[332154894,1720992645096,-500.0,0.00013959,2]
[332154896,1720992645105,-599.65,0.00013959,2]
[332154898,1720992645115,-226.24989383,0.00013959,2]
[332154900,1720992645124,-500.0,0.00013959,2]
[332154902,1720992645133,-500.0,0.00013959,2]
[332154904,1720992645143,-500.0,0.00013959,2]
[332154906,1720992645153,-500.0,0.00013959,2]
[332154908,1720992645162,-500.0,0.00013959,2]
[332154910,1720992645172,-500.0,0.00013959,2]
[332154912,1720992645183,-500.0,0.00013959,2]
[332154913,1720992645197,-500.0,0.00013959,2]
[332154915,1720992645206,-500.0,0.00013959,2]
[332154918,1720992645216,-500.0,0.00013959,2]
[332154919,1720992645226,-205.21901608,0.00013959,2]
[332154922,1720992645239,-294.78098392,0.00013959,2]
[332154924,1720992645249,-283.56277164,0.00013959,2]
[332154926,1720992645261,-216.43722836,0.00013959,2]
[332154928,1720992645273,-157.45461435,0.00013959,2]
[332154930,1720992645285,-256.89893274,0.00013959,2]
[332154936,1720992645333,-85.64645291,0.00013959,2]
[332154938,1720992645342,-500.0,0.00013959,2]
[332154940,1720992645351,-85.05354709,0.00013959,2]
[332154943,1720992645363,-220.96645291,0.00013959,2]
[332154945,1720992645372,-500.0,0.00013959,2]
[332154947,1720992645382,-398.96333549,0.00013959,2]
[332154949,1720992645392,-500.0,0.00013959,2]
[332154951,1720992645401,-500.0,0.00013959,2]
[332154953,1720992645410,-500.0,0.00013959,2]
[332154955,1720992645419,-500.0,0.00013959,2]
[332154957,1720992645430,-500.0,0.00013959,2]
[332154958,1720992645439,-54.5202116,0.00013959,2]
[332154961,1720992645450,-445.4797884,0.00013959,2]
[332154962,1720992645460,-500.0,0.00013959,2]
[332154964,1720992645469,-211.50948325,0.00013959,2]
[332154967,1720992645483,-288.49051675,0.00013959,2]
[332154969,1720992645493,-500.0,0.00013959,2]
[332154971,1720992645503,-341.07948322,0.00013972,2]
[332154973,1720992645515,-158.92051678,0.00013972,2]
[332154975,1720992645524,-374.17948322,0.00013972,2]
[332154977,1720992645535,-125.82051678,0.00013972,2]
[332154979,1720992645545,-500.0,0.00013972,2]
[332154981,1720992645554,-150.0,0.00013972,2]
[332154983,1720992645564,-500.0,0.00013972,2]
[332154985,1720992645573,-236.13,0.00013972,2]
[332154987,1720992645582,-500.0,0.00013972,2]
[332154989,1720992645592,-500.0,0.00013972,2]
[332154992,1720992645602,-500.0,0.00013972,2]
[332154994,1720992645612,-215.83069908,0.00013972,2]
[332154996,1720992645624,-284.16930092,0.00013972,2]
[332154998,1720992645634,-500.0,0.00013972,2]
[332155000,1720992645644,-500.0,0.00013972,2]
[332155002,1720992645655,-236.15569908,0.00013972,2]
[332155004,1720992645667,-263.84430092,0.00013972,2]
[332155006,1720992645677,-133.78668295,0.00013972,2]
[332155009,1720992645691,-366.21331705,0.00013972,2]
[332155011,1720992645700,-500.0,0.00013972,2]
[332155013,1720992645710,-500.0,0.00013972,2]
[332155015,1720992645720,-606.68,0.00013972,2]
[332155017,1720992645730,-921.18,0.00013972,2]
[332155019,1720992645740,-617.08,0.00013972,2]
[332155021,1720992645749,-500.0,0.00013972,2]
[332155023,1720992645758,-500.0,0.00013972,2]
[332155025,1720992645768,-500.0,0.00013972,2]
[332155027,1720992645777,-935.03,0.00013972,2]
[332155029,1720992645787,-609.32,0.00013972,2]
[332155031,1720992645796,-500.0,0.00013972,2]
[332155033,1720992645806,-1102.38,0.00013972,2]
[332155035,1720992645815,-500.0,0.00013972,2]
[332155037,1720992645824,-500.0,0.00013972,2]
[332155039,1720992645834,-500.15,0.00013972,2]
[332155041,1720992645843,-500.0,0.00013972,2]
[332155043,1720992645853,-500.0,0.00013972,2]
[332155045,1720992645862,-1256.74,0.00013972,2]
[332155047,1720992645871,-500.0,0.00013972,2]
[332155049,1720992645880,-500.0,0.00013972,2]
[332155051,1720992645890,-310.88,0.00013972,2]
[332155053,1720992645899,-500.0,0.00013972,2]
[332155055,1720992645910,-614.78,0.00013972,2]
[332155057,1720992645919,-500.0,0.00013972,2]
[332155059,1720992645930,-544.26,0.00013972,2]
[332155061,1720992645940,-500.0,0.00013972,2]
[332155063,1720992645950,-1402.59,0.00013972,2]
[332155065,1720992645959,-1000.0,0.00013973,5]
[332155067,1720992645971,-155.0,0.00013989,2]
[332155069,1720992645981,-292.54926927,0.00013989,2]
[332155072,1720992645992,-210.46747941,0.00013989,2]
[332155074,1720992646001,-209.00279412,0.00013989,2]
[332155076,1720992646011,-4501.88095369,0.0001399,2]
[332155078,1720992646020,-204.2010999,0.00013998,2]
[332155080,1720992646030,-1515.4817057,0.00013998,2]
[332155082,1720992646039,-4994.4996749,0.00013998,2]
[332155083,1720992646049,-150.01,0.00013999,2]
[332155086,1720992646059,-323.84473241,0.00013999,2]
[332155088,1720992646069,-269.74039359,0.00013999,2]
[332155091,1720992646080,-54453.17850087,0.00014,2]
[332155094,1720992646092,-721.48579766,0.00014,2]
[332155097,1720992646104,-648.96,0.00014,2]
[332155100,1720992646116,-271.26559914,0.00014,2]
[332155104,1720992646127,-342.30435035,0.00014,2]
[332155107,1720992646138,-1677.4,0.00014,2]
[332155111,1720992646149,-3755.125,0.00014,2]
[332155114,1720992646161,-4608.07243216,0.00014,2]
[332155117,1720992646172,-9868.98114784,0.00014,2]
[332155120,1720992646183,-3870.18624551,0.00014,2]
[332155124,1720992646200,-500.0,0.00014,2]
[332155127,1720992646212,-1697.27162398,0.00014,2]
[332155131,1720992646224,-72695.16729025,0.00014,2]
[332155134,1720992646235,-9920.5,0.00014,2]
[332155137,1720992646246,-3200.6762738,0.00014,2]
[332155141,1720992646261,-82489.75677284,0.00014,2]
[332155156,1720992646315,-500.0,0.00013849,2]
[332155159,1720992646324,-48769.39928526,0.00014,2]
[332155163,1720992646335,-20901.6265726,0.00014,2]
[332155165,1720992646345,-36835.9908924,0.00014,2]
[332155240,1720992646758,-10492.6756485,0.00014,2]
[332155242,1720992646770,-1936995.5852281,0.00014,2]
[332155244,1720992646784,-46936.84314725,0.00014,2]
[332155247,1720992646796,-5557.37127244,0.00014,2]
[332155249,1720992646809,-4334.4188288,0.00014,2]
[332155251,1720992646820,-301.88553806,0.00014,2]
[332155267,1720992646991,-155.0,0.00013889,2]
[332155268,1720992647000,-296.17035922,0.00013999,2]
[332155270,1720992647010,-461.29846366,0.00013999,2]
[332155272,1720992647019,-1226054.97727627,0.00014,2]
[332155275,1720992647031,-532.73319864,0.00014,2]
[332155277,1720992647042,-1732.22080187,0.00014,2]
[332155279,1720992647054,-3054.9,0.00014,2]
[332155281,1720992647066,-9360.43316431,0.00014,2]
[332155284,1720992647081,-8701.93524519,0.00014,2]
[332155286,1720992647092,-4674.85222572,0.00014,2]
[332155288,1720992647104,-4568.1,0.00014,2]
[332155290,1720992647115,-815.16084222,0.00014,2]
[332155293,1720992647127,-266.7045658,0.00014,2]
[332155295,1720992647139,-11998.74217153,0.00014,2]
[332155475,1720992648965,592.84718181,0.00010998,2]
[332156276,1720992919847,455.06,0.00010283,2]
[332156283,1720993113895,-1014.8751448,0.00014789,20]
[332156284,1720993154335,-251.05,0.00017,31]